[Event "*** SCC Grand Prix: Titled Tuesday Blitz"]
[Site "Chess.com"]
[Date "2020.07.14"]
[Round "7"]
[White "S2PAc"]
[Black "Mr_Sinigami"]
[Result "1-0"]
[WhiteElo "2744"]
[BlackElo "2570"]
[TimeControl "180+1"]
[EndTime "11:21:56 PDT"]
[Termination "S2PAc won by checkmate"]

1. d4 {[%clk 0:03:00.9]} 1... Nf6 {[%clk 0:02:58.7]} 2. g3 {[%clk 0:03:01.1]}
2... g6 {[%clk 0:02:56]} 3. Bg2 {[%clk 0:03:01.4]} 3... Bg7 {[%clk 0:02:56.1]}
4. e4 {[%clk 0:03:01.7]} 4... d6 {[%clk 0:02:55.6]} 5. Nc3 {[%clk 0:03:02.2]}
5... O-O {[%clk 0:02:54.8]} 6. Nge2 {[%clk 0:03:02.7]} 6... e5 {[%clk
0:02:47.7]} 7. O-O {[%clk 0:03:02.3]} 7... Re8 {[%clk 0:02:11.2]} 8. h3 {[%clk
0:03:00.8]} 8... Nc6 {[%clk 0:02:08]} 9. dxe5 {[%clk 0:02:59.2]} 9... dxe5
{[%clk 0:02:01.1]} 10. Bg5 {[%clk 0:02:58.8]} 10... Nd4 {[%clk 0:01:51.9]} 11.
Nxd4 {[%clk 0:02:30.8]} 11... exd4 {[%clk 0:01:41.2]} 12. Nd5 {[%clk 0:02:30.8]}
12... Be6 {[%clk 0:01:28.7]} 13. Re1 {[%clk 0:01:43.3]} 13... Bxd5 {[%clk
0:00:52]} 14. exd5 {[%clk 0:01:41.9]} 14... Rxe1+ {[%clk 0:00:51.4]} 15. Qxe1
{[%clk 0:01:42.8]} 15... Qd7 {[%clk 0:00:51.2]} 16. Qb4 {[%clk 0:01:34.3]} 16...
Nxd5 {[%clk 0:00:45.9]} 17. Qxb7 {[%clk 0:01:30.5]} 17... Nb6 {[%clk 0:00:43.2]}
18. Bf4 {[%clk 0:01:19.7]} 18... Re8 {[%clk 0:00:20.5]} 19. Bc6 {[%clk
0:01:16.8]} 19... Qc8 {[%clk 0:00:20.5]} 20. Qxc8 {[%clk 0:01:09.4]} 20... Rxc8
{[%clk 0:00:20.3]} 21. Re1 {[%clk 0:01:10]} 21... Kf8 {[%clk 0:00:18.3]} 22. Bb7
{[%clk 0:00:51.3]} 22... Rb8 {[%clk 0:00:17.5]} 23. Bxc7 {[%clk 0:00:47.8]}
23... Rxb7 {[%clk 0:00:11.7]} 24. Bd6+ {[%clk 0:00:48.4]} 24... Kg8 {[%clk
0:00:12]} 25. Re8+ {[%clk 0:00:49]} 25... Bf8 {[%clk 0:00:12.6]} 26. Rxf8+
{[%clk 0:00:43.7]} 26... Kg7 {[%clk 0:00:12.3]} 27. Rd8 {[%clk 0:00:31.9]} 27...
Nc4 {[%clk 0:00:09.6]} 28. Bf8+ {[%clk 0:00:31.3]} 28... Kf6 {[%clk 0:00:09.2]}
29. b3 {[%clk 0:00:31.8]} 29... Nd2 {[%clk 0:00:07.6]} 30. Kg2 {[%clk
0:00:26.2]} 30... Nb1 {[%clk 0:00:04.2]} 31. Rxd4 {[%clk 0:00:23.8]} 31... Nc3
{[%clk 0:00:04.6]} 32. a4 {[%clk 0:00:22.1]} 32... Ke6 {[%clk 0:00:04.4]} 33.
Rc4 {[%clk 0:00:21.6]} 33... Nd5 {[%clk 0:00:04.2]} 34. Bh6 {[%clk 0:00:21.5]}
34... Rd7 {[%clk 0:00:03.3]} 35. Bg5 {[%clk 0:00:20.3]} 35... f6 {[%clk
0:00:02.5]} 36. Bd2 {[%clk 0:00:20]} 36... h5 {[%clk 0:00:02.6]} 37. Re4+ {[%clk
0:00:19.6]} 37... Kf5 {[%clk 0:00:02.3]} 38. Rd4 {[%clk 0:00:19.3]} 38... g5
{[%clk 0:00:02.5]} 39. Rd3 {[%clk 0:00:18.2]} 39... Ke6 {[%clk 0:00:01.4]} 40.
Kf1 {[%clk 0:00:17.4]} 40... Rc7 {[%clk 0:00:01.6]} 41. c4 {[%clk 0:00:17.2]}
41... Ne7 {[%clk 0:00:02]} 42. Be3 {[%clk 0:00:17.2]} 42... Nf5 {[%clk
0:00:01.8]} 43. g4 {[%clk 0:00:17.7]} 43... hxg4 {[%clk 0:00:01.8]} 44. hxg4
{[%clk 0:00:18.6]} 44... Nh6 {[%clk 0:00:02.4]} 45. f3 {[%clk 0:00:17.2]} 45...
Nf7 {[%clk 0:00:02.9]} 46. Rd5 {[%clk 0:00:17.4]} 46... Ne5 {[%clk 0:00:03.2]}
47. Ke2 {[%clk 0:00:18]} 47... Rh7 {[%clk 0:00:03.4]} 48. Bf2 {[%clk 0:00:17.7]}
48... Rh2 {[%clk 0:00:03.8]} 49. Ra5 {[%clk 0:00:17.6]} 49... Rh3 {[%clk
0:00:04.4]} 50. Ra6+ {[%clk 0:00:17.9]} 50... Kf7 {[%clk 0:00:04.7]} 51. Rxa7+
{[%clk 0:00:18.8]} 51... Kg6 {[%clk 0:00:05.2]} 52. a5 {[%clk 0:00:19.3]} 52...
Rxf3 {[%clk 0:00:05.5]} 53. Rb7 {[%clk 0:00:18.7]} 53... Rc3 {[%clk 0:00:05.6]}
54. a6 {[%clk 0:00:18.7]} 54... Rc2+ {[%clk 0:00:05.9]} 55. Kf1 {[%clk
0:00:19.1]} 55... Nxg4 {[%clk 0:00:06.1]} 56. Bc5 {[%clk 0:00:18.9]} 56... Nh2+
{[%clk 0:00:06.1]} 57. Ke1 {[%clk 0:00:18.3]} 57... Nf3+ {[%clk 0:00:06.3]} 58.
Kd1 {[%clk 0:00:18.7]} 58... Ra2 {[%clk 0:00:06.7]} 59. a7 {[%clk 0:00:18.4]}
59... g4 {[%clk 0:00:07]} 60. Rb8 {[%clk 0:00:18.5]} 60... Kf5 {[%clk
0:00:06.8]} 61. a8=Q {[%clk 0:00:18.8]} 61... Rxa8 {[%clk 0:00:06.9]} 62. Rxa8
{[%clk 0:00:19.7]} 62... g3 {[%clk 0:00:07.4]} 63. Rg8 {[%clk 0:00:19.7]} 63...
Ng5 {[%clk 0:00:07.7]} 64. b4 {[%clk 0:00:19.3]} 64... g2 {[%clk 0:00:07.4]} 65.
b5 {[%clk 0:00:19.8]} 65... Ne4 {[%clk 0:00:07.2]} 66. Bg1 {[%clk 0:00:19.4]}
66... Nc3+ {[%clk 0:00:05.9]} 67. Kc2 {[%clk 0:00:19.1]} 67... Ne2 {[%clk
0:00:05.5]} 68. Rxg2 {[%clk 0:00:19.5]} 68... Nf4 {[%clk 0:00:05.6]} 69. Rf2
{[%clk 0:00:19.7]} 69... Ke4 {[%clk 0:00:05.9]} 70. Rxf4+ {[%clk 0:00:20.6]}
70... Kxf4 {[%clk 0:00:06.1]} 71. b6 {[%clk 0:00:21.5]} 71... Ke4 {[%clk
0:00:06.5]} 72. b7 {[%clk 0:00:22.4]} 72... f5 {[%clk 0:00:07.1]} 73. b8=Q
{[%clk 0:00:23.3]} 73... Kf3 {[%clk 0:00:07.6]} 74. Qb7+ {[%clk 0:00:23.6]}
74... Kg4 {[%clk 0:00:07.3]} 75. Qg2+ {[%clk 0:00:23.3]} 75... Kf4 {[%clk
0:00:07.6]} 76. Qf2+ {[%clk 0:00:23.7]} 76... Ke4 {[%clk 0:00:07.7]} 77. Qd4+
{[%clk 0:00:23.6]} 77... Kf3 {[%clk 0:00:07.7]} 78. Kd2 {[%clk 0:00:23.3]} 78...
f4 {[%clk 0:00:07.6]} 79. Qf2+ {[%clk 0:00:23.2]} 79... Ke4 {[%clk 0:00:07.5]}
80. Bh2 {[%clk 0:00:23.4]} 80... f3 {[%clk 0:00:07.3]} 81. Qe3+ {[%clk
0:00:23.8]} 81... Kf5 {[%clk 0:00:07.3]} 82. Qxf3+ {[%clk 0:00:24.3]} 82... Kg5
{[%clk 0:00:07.5]} 83. Qf4+ {[%clk 0:00:24]} 83... Kh5 {[%clk 0:00:07.5]} 84.
Ke3 {[%clk 0:00:23.9]} 84... Kg6 {[%clk 0:00:07.4]} 85. Ke4 {[%clk 0:00:24.3]}
85... Kh5 {[%clk 0:00:07.5]} 86. Qg3 {[%clk 0:00:24.5]} 86... Kh6 {[%clk
0:00:07.4]} 87. Kf5 {[%clk 0:00:24.7]} 87... Kh7 {[%clk 0:00:07.8]} 88. Qg6+
{[%clk 0:00:25.3]} 88... Kh8 {[%clk 0:00:07.6]} 89. Be5# {[%clk 0:00:26.2]} 1-0

[Event "*** SCC Grand Prix: Titled Tuesday Blitz"]
[Site "Chess.com"]
[Date "2020.07.14"]
[Round "7"]
[White "RaunakSadhwani2005"]
[Black "TimofeevAr"]
[Result "1/2-1/2"]
[WhiteElo "2951"]
[BlackElo "2797"]
[TimeControl "180+1"]
[EndTime "11:21:57 PDT"]
[Termination "Game drawn - insufficient material"]

1. d4 {[%clk 0:03:00.9]} 1... d5 {[%clk 0:02:59.3]} 2. Nf3 {[%clk 0:02:59.4]}
2... Nf6 {[%clk 0:02:58.7]} 3. Bf4 {[%clk 0:02:59.4]} 3... e6 {[%clk 0:02:58.2]}
4. e3 {[%clk 0:02:58.3]} 4... b6 {[%clk 0:02:58.1]} 5. c3 {[%clk 0:02:52.1]}
5... Bb7 {[%clk 0:02:57.2]} 6. Bd3 {[%clk 0:02:50.9]} 6... Bd6 {[%clk
0:02:56.7]} 7. Ne5 {[%clk 0:02:50.8]} 7... Nbd7 {[%clk 0:02:45.2]} 8. Nd2 {[%clk
0:02:47.7]} 8... Ne4 {[%clk 0:02:33.7]} 9. Ndf3 {[%clk 0:02:06.7]} 9... O-O
{[%clk 0:02:28]} 10. O-O {[%clk 0:02:01.5]} 10... f6 {[%clk 0:02:23.9]} 11. Nxd7
{[%clk 0:02:01.5]} 11... Qxd7 {[%clk 0:02:23.7]} 12. Bxd6 {[%clk 0:01:59]} 12...
Qxd6 {[%clk 0:02:23.6]} 13. a4 {[%clk 0:01:58.5]} 13... a5 {[%clk 0:02:22.7]}
14. Qc2 {[%clk 0:01:58.5]} 14... c5 {[%clk 0:02:18.3]} 15. Rfd1 {[%clk
0:01:55.6]} 15... Qe7 {[%clk 0:02:14.3]} 16. Qe2 {[%clk 0:01:49.9]} 16... Rac8
{[%clk 0:02:09.7]} 17. Bxe4 {[%clk 0:01:42.4]} 17... dxe4 {[%clk 0:02:09.3]} 18.
Nd2 {[%clk 0:01:43.3]} 18... cxd4 {[%clk 0:02:01.9]} 19. exd4 {[%clk 0:01:44.2]}
19... f5 {[%clk 0:02:00.2]} 20. Qb5 {[%clk 0:01:38.3]} 20... Qc7 {[%clk
0:01:47.3]} 21. Re1 {[%clk 0:01:34]} 21... Bc6 {[%clk 0:01:39.3]} 22. Qb3 {[%clk
0:01:33.7]} 22... Bd5 {[%clk 0:01:39.3]} 23. Qb5 {[%clk 0:01:33.7]} 23... Bc6
{[%clk 0:01:39.2]} 24. Qe2 {[%clk 0:01:34.1]} 24... e5 {[%clk 0:01:30.2]} 25.
Qc4+ {[%clk 0:01:22.4]} 25... Kh8 {[%clk 0:01:07.1]} 26. d5 {[%clk 0:01:22.4]}
26... Bxd5 {[%clk 0:00:53.2]} 27. Qxd5 {[%clk 0:01:17.9]} 27... Rfd8 {[%clk
0:00:53.4]} 28. Qe6 {[%clk 0:01:17.6]} 28... Rxd2 {[%clk 0:00:53.3]} 29. Qxf5
{[%clk 0:01:17.9]} 29... Rxb2 {[%clk 0:00:52.5]} 30. Rxe4 {[%clk 0:01:10.8]}
30... Qxc3 {[%clk 0:00:50.5]} 31. Rae1 {[%clk 0:01:11.2]} 31... Rc2 {[%clk
0:00:43.2]} 32. h4 {[%clk 0:00:54.9]} 32... Rc1 {[%clk 0:00:42.1]} 33. Rxc1
{[%clk 0:00:55.2]} 33... Qxc1+ {[%clk 0:00:42.4]} 34. Kh2 {[%clk 0:00:56.1]}
34... Qc7 {[%clk 0:00:41.5]} 35. Rxe5 {[%clk 0:00:52.5]} 35... Re8 {[%clk
0:00:33.5]} 36. f4 {[%clk 0:00:51.6]} 36... Rd8 {[%clk 0:00:33]} 37. h5 {[%clk
0:00:50]} 37... h6 {[%clk 0:00:32.7]} 38. Qg6 {[%clk 0:00:46.4]} 38... Rf8
{[%clk 0:00:32.3]} 39. Qe4 {[%clk 0:00:41.1]} 39... Qd8 {[%clk 0:00:31.8]} 40.
g3 {[%clk 0:00:39.7]} 40... Qd6 {[%clk 0:00:31.8]} 41. Kh3 {[%clk 0:00:36.8]}
41... Qd7+ {[%clk 0:00:31.7]} 42. Kg2 {[%clk 0:00:32.3]} 42... Qd6 {[%clk
0:00:31.6]} 43. Kf3 {[%clk 0:00:26.9]} 43... Qd1+ {[%clk 0:00:31]} 44. Kf2
{[%clk 0:00:24.1]} 44... Qd2+ {[%clk 0:00:31.3]} 45. Kf3 {[%clk 0:00:23.1]}
45... Qd1+ {[%clk 0:00:31.7]} 46. Kg2 {[%clk 0:00:23.4]} 46... Qd2+ {[%clk
0:00:31.6]} 47. Qe2 {[%clk 0:00:22.5]} 47... Qxe2+ {[%clk 0:00:31.1]} 48. Rxe2
{[%clk 0:00:23.4]} 48... Rf5 {[%clk 0:00:29.3]} 49. Rb2 {[%clk 0:00:19.5]} 49...
Rc5 {[%clk 0:00:25.4]} 50. Rxb6 {[%clk 0:00:18.4]} 50... Rc4 {[%clk 0:00:25.9]}
51. Ra6 {[%clk 0:00:18.5]} 51... Rxa4 {[%clk 0:00:25.4]} 52. Kf3 {[%clk
0:00:18.1]} 52... Ra1 {[%clk 0:00:25.6]} 53. Kg4 {[%clk 0:00:18.2]} 53... a4
{[%clk 0:00:25.5]} 54. Kf5 {[%clk 0:00:18.3]} 54... Kh7 {[%clk 0:00:25.9]} 55.
g4 {[%clk 0:00:17.7]} 55... a3 {[%clk 0:00:25.4]} 56. Ra7 {[%clk 0:00:18]} 56...
Ra2 {[%clk 0:00:21.4]} 57. Ra8 {[%clk 0:00:16.6]} 57... Ra1 {[%clk 0:00:21.5]}
58. Ke6 {[%clk 0:00:17.1]} 58... Rg1 {[%clk 0:00:19.2]} 59. Kf5 {[%clk
0:00:14.3]} 59... Ra1 {[%clk 0:00:19.2]} 60. Ra7 {[%clk 0:00:14.6]} 60... Ra2
{[%clk 0:00:19.6]} 61. Ke6 {[%clk 0:00:14.9]} 61... Rg2 {[%clk 0:00:19.6]} 62.
f5 {[%clk 0:00:13.6]} 62... Rxg4 {[%clk 0:00:19.8]} 63. f6 {[%clk 0:00:14.1]}
63... a2 {[%clk 0:00:20]} 64. f7 {[%clk 0:00:14.1]} 64... Re4+ {[%clk
0:00:20.4]} 65. Kd7 {[%clk 0:00:10.9]} 65... Rf4 {[%clk 0:00:20.6]} 66. Ke6
{[%clk 0:00:09.2]} 66... Re4+ {[%clk 0:00:20.9]} 67. Kf5 {[%clk 0:00:07.1]}
67... Re1 {[%clk 0:00:21.1]} 68. Rxa2 {[%clk 0:00:05.5]} 68... Rf1+ {[%clk
0:00:21.3]} 69. Ke6 {[%clk 0:00:05.5]} 69... Re1+ {[%clk 0:00:21.8]} 70. Kd7
{[%clk 0:00:05.9]} 70... Rf1 {[%clk 0:00:20.6]} 71. Ke7 {[%clk 0:00:06]} 71...
Re1+ {[%clk 0:00:21]} 72. Kf8 {[%clk 0:00:06.4]} 72... g6 {[%clk 0:00:20.9]} 73.
Ra7 {[%clk 0:00:04.4]} 73... gxh5 {[%clk 0:00:20.5]} 74. Re7 {[%clk 0:00:04.8]}
74... Rf1 {[%clk 0:00:19.6]} 75. Ke8 {[%clk 0:00:04.9]} 75... Kg6 {[%clk
0:00:20.1]} 76. f8=Q {[%clk 0:00:04.9]} 76... Rxf8+ {[%clk 0:00:20.3]} 77. Kxf8
{[%clk 0:00:05.8]} 77... h4 {[%clk 0:00:20.7]} 78. Re5 {[%clk 0:00:06]} 78... h5
{[%clk 0:00:19.2]} 79. Ke7 {[%clk 0:00:05.9]} 79... h3 {[%clk 0:00:19.7]} 80.
Ke6 {[%clk 0:00:05.7]} 80... h2 {[%clk 0:00:20.2]} 81. Re1 {[%clk 0:00:06]}
81... Kg5 {[%clk 0:00:20.9]} 82. Rh1 {[%clk 0:00:05.1]} 82... Kg4 {[%clk
0:00:21.4]} 83. Rxh2 {[%clk 0:00:06]} 83... h4 {[%clk 0:00:21.8]} 84. Ke5 {[%clk
0:00:06.3]} 84... Kg3 {[%clk 0:00:22.2]} 85. Ra2 {[%clk 0:00:06.1]} 85... h3
{[%clk 0:00:22.7]} 86. Ke4 {[%clk 0:00:06.3]} 86... h2 {[%clk 0:00:23]} 87. Ra1
{[%clk 0:00:06.7]} 87... Kg2 {[%clk 0:00:23.5]} 88. Ke3 {[%clk 0:00:07.1]} 88...
h1=Q {[%clk 0:00:23.5]} 89. Rxh1 {[%clk 0:00:07.6]} 89... Kxh1 {[%clk
0:00:23.9]} 1/2-1/2

[Event "*** SCC Grand Prix: Titled Tuesday Blitz"]
[Site "Chess.com"]
[Date "2020.07.14"]
[Round "7"]
[White "WiktoriaPOL"]
[Black "vesalhamedinia"]
[Result "1-0"]
[WhiteElo "1924"]
[BlackElo "2191"]
[TimeControl "180+1"]
[EndTime "11:22:08 PDT"]
[Termination "WiktoriaPOL won by checkmate"]

1. c4 {[%clk 0:03:00.9]} 1... e6 {[%clk 0:02:59.7]} 2. Nc3 {[%clk 0:03:00.1]}
2... Nf6 {[%clk 0:02:59.5]} 3. e4 {[%clk 0:02:59.1]} 3... d5 {[%clk 0:02:59.2]}
4. e5 {[%clk 0:02:58.1]} 4... Nfd7 {[%clk 0:02:56.7]} 5. d4 {[%clk 0:02:53.2]}
5... c6 {[%clk 0:02:54.9]} 6. Nf3 {[%clk 0:02:45.1]} 6... Be7 {[%clk 0:02:53.7]}
7. cxd5 {[%clk 0:02:43]} 7... exd5 {[%clk 0:02:52.3]} 8. Bd3 {[%clk 0:02:40]}
8... O-O {[%clk 0:02:50.4]} 9. h4 {[%clk 0:02:30]} 9... h6 {[%clk 0:02:46.2]}
10. g4 {[%clk 0:02:21]} 10... Re8 {[%clk 0:02:20.9]} 11. g5 {[%clk 0:02:18.3]}
11... h5 {[%clk 0:02:05.7]} 12. Nh2 {[%clk 0:02:01.8]} 12... g6 {[%clk
0:02:01.5]} 13. Nf1 {[%clk 0:02:00.9]} 13... Nf8 {[%clk 0:01:45.5]} 14. Ng3
{[%clk 0:01:59.2]} 14... Bg4 {[%clk 0:01:45.3]} 15. f3 {[%clk 0:01:58.1]} 15...
Bd7 {[%clk 0:01:43]} 16. f4 {[%clk 0:01:46.1]} 16... Bg4 {[%clk 0:01:42.5]} 17.
Be2 {[%clk 0:01:46.1]} 17... Bxe2 {[%clk 0:01:27.3]} 18. Qxe2 {[%clk 0:01:47]}
18... Ne6 {[%clk 0:01:21.3]} 19. f5 {[%clk 0:01:45.2]} 19... Nxd4 {[%clk
0:01:18.6]} 20. Qf2 {[%clk 0:01:37.3]} 20... Bc5 {[%clk 0:01:15.8]} 21. Be3
{[%clk 0:01:35.2]} 21... Rxe5 {[%clk 0:01:02.5]} 22. Kd1 {[%clk 0:01:11.2]}
22... Rxe3 {[%clk 0:00:43.6]} 23. Qxe3 {[%clk 0:01:10]} 23... Nxf5 {[%clk
0:00:22.2]} 24. Qxc5 {[%clk 0:00:58]} 24... Nxg3 {[%clk 0:00:22.2]} 25. Rg1
{[%clk 0:00:46.4]} 25... Nf5 {[%clk 0:00:20.4]} 26. Qf2 {[%clk 0:00:43.3]} 26...
Nd7 {[%clk 0:00:19.2]} 27. Kc2 {[%clk 0:00:41.3]} 27... Ne5 {[%clk 0:00:19.3]}
28. Rae1 {[%clk 0:00:40.1]} 28... Nc4 {[%clk 0:00:19.1]} 29. b3 {[%clk
0:00:38.3]} 29... Ncd6 {[%clk 0:00:19.1]} 30. Kb2 {[%clk 0:00:32.5]} 30... Qa5
{[%clk 0:00:19]} 31. Re2 {[%clk 0:00:29.2]} 31... Rd8 {[%clk 0:00:17.5]} 32.
Rge1 {[%clk 0:00:26.5]} 32... d4 {[%clk 0:00:17.6]} 33. Ne4 {[%clk 0:00:23.9]}
33... Nxe4 {[%clk 0:00:17.6]} 34. Rxe4 {[%clk 0:00:23.1]} 34... Qc3+ {[%clk
0:00:18.5]} 35. Kb1 {[%clk 0:00:22]} 35... d3 {[%clk 0:00:18.1]} 36. Qb2 {[%clk
0:00:17.8]} 36... Qxb2+ {[%clk 0:00:12.6]} 37. Kxb2 {[%clk 0:00:18.7]} 37... d2
{[%clk 0:00:12.6]} 38. Rd1 {[%clk 0:00:18.5]} 38... Rd3 {[%clk 0:00:12.4]} 39.
Re2 {[%clk 0:00:16.2]} 39... Nxh4 {[%clk 0:00:10.1]} 40. Rdxd2 {[%clk
0:00:15.4]} 40... Rxd2+ {[%clk 0:00:09.4]} 41. Rxd2 {[%clk 0:00:16.3]} 41... Nf3
{[%clk 0:00:10.2]} 42. Rd8+ {[%clk 0:00:15.3]} 42... Kg7 {[%clk 0:00:10.7]} 43.
Rd7 {[%clk 0:00:15.5]} 43... Nxg5 {[%clk 0:00:10.8]} 44. Rxb7 {[%clk 0:00:15.7]}
44... h4 {[%clk 0:00:11.5]} 45. Rxa7 {[%clk 0:00:15.7]} 45... h3 {[%clk
0:00:11.8]} 46. Ra4 {[%clk 0:00:15.6]} 46... f5 {[%clk 0:00:10.1]} 47. Rh4
{[%clk 0:00:15.3]} 47... Kf6 {[%clk 0:00:10.3]} 48. a4 {[%clk 0:00:15]} 48...
Ke5 {[%clk 0:00:10.5]} 49. a5 {[%clk 0:00:15.2]} 49... Kd5 {[%clk 0:00:10.8]}
50. a6 {[%clk 0:00:15.2]} 50... f4 {[%clk 0:00:10.9]} 51. Rxf4 {[%clk
0:00:13.1]} 51... h2 {[%clk 0:00:10.7]} 52. Rh4 {[%clk 0:00:13.2]} 52... Nf3
{[%clk 0:00:10.9]} 53. Rxh2 {[%clk 0:00:09.4]} 53... Nxh2 {[%clk 0:00:10.8]} 54.
a7 {[%clk 0:00:09.3]} 54... g5 {[%clk 0:00:11.7]} 55. a8=Q {[%clk 0:00:09.4]}
55... g4 {[%clk 0:00:12.6]} 56. Qg8+ {[%clk 0:00:09.4]} 56... Ke4 {[%clk
0:00:12.4]} 57. Qh7+ {[%clk 0:00:08.7]} 57... Kf3 {[%clk 0:00:11.6]} 58. Qxh2
{[%clk 0:00:08.3]} 58... g3 {[%clk 0:00:12.2]} 59. Qg1 {[%clk 0:00:08.2]} 59...
g2 {[%clk 0:00:13.1]} 60. Kc2 {[%clk 0:00:07.9]} 60... Ke4 {[%clk 0:00:12.8]}
61. Kd2 {[%clk 0:00:08.3]} 61... c5 {[%clk 0:00:12.2]} 62. Qxg2+ {[%clk
0:00:08.5]} 62... Kd4 {[%clk 0:00:12.6]} 63. Qg4+ {[%clk 0:00:08.6]} 63... Kd5
{[%clk 0:00:10.1]} 64. Qg5+ {[%clk 0:00:08.1]} 64... Kc6 {[%clk 0:00:10.2]} 65.
Kd3 {[%clk 0:00:07.3]} 65... Kb5 {[%clk 0:00:11]} 66. Qd5 {[%clk 0:00:06.2]}
66... Kb4 {[%clk 0:00:11.5]} 67. Qc4+ {[%clk 0:00:06.2]} 67... Ka3 {[%clk
0:00:12.4]} 68. Qa4+ {[%clk 0:00:05.3]} 68... Kb2 {[%clk 0:00:13.3]} 69. b4
{[%clk 0:00:04.9]} 69... c4+ {[%clk 0:00:13.5]} 70. Kxc4 {[%clk 0:00:04.5]}
70... Kc1 {[%clk 0:00:13.7]} 71. Kc3 {[%clk 0:00:04.4]} 71... Kb1 {[%clk
0:00:14.2]} 72. Qc2+ {[%clk 0:00:03.9]} 72... Ka1 {[%clk 0:00:14.4]} 73. Qc1+
{[%clk 0:00:03.3]} 73... Ka2 {[%clk 0:00:13.9]} 74. Qb2# {[%clk 0:00:03.8]} 1-0

[Event "*** SCC Grand Prix: Titled Tuesday Blitz"]
[Site "Chess.com"]
[Date "2020.07.14"]
[Round "7"]
[White "OhanyanEminChess"]
[Black "Kotofeyca"]
[Result "1-0"]
[WhiteElo "2485"]
[BlackElo "2310"]
[TimeControl "180+1"]
[EndTime "11:22:14 PDT"]
[Termination "OhanyanEminChess won on time"]

1. e4 {[%clk 0:02:58.9]} 1... c5 {[%clk 0:02:59.3]} 2. Nf3 {[%clk 0:02:58.4]}
2... d6 {[%clk 0:02:59.7]} 3. d4 {[%clk 0:02:57.5]} 3... cxd4 {[%clk 0:03:00.6]}
4. Nxd4 {[%clk 0:02:58.4]} 4... Nf6 {[%clk 0:03:01.2]} 5. Nc3 {[%clk 0:02:55.1]}
5... a6 {[%clk 0:03:01.8]} 6. Bc4 {[%clk 0:02:52.7]} 6... e6 {[%clk 0:03:01.3]}
7. Bb3 {[%clk 0:02:45.7]} 7... Be7 {[%clk 0:03:01.2]} 8. f4 {[%clk 0:02:43.5]}
8... Qc7 {[%clk 0:02:59.3]} 9. f5 {[%clk 0:02:13]} 9... e5 {[%clk 0:02:48.7]}
10. Nde2 {[%clk 0:02:10.5]} 10... Nbd7 {[%clk 0:02:45.5]} 11. O-O {[%clk
0:02:05.3]} 11... b5 {[%clk 0:02:44]} 12. Nd5 {[%clk 0:01:41.6]} 12... Nxd5
{[%clk 0:02:24]} 13. Bxd5 {[%clk 0:01:42.5]} 13... Rb8 {[%clk 0:02:11.8]} 14.
Ng3 {[%clk 0:01:41.8]} 14... Nf6 {[%clk 0:02:07.9]} 15. Nh5 {[%clk 0:01:34.7]}
15... O-O {[%clk 0:01:27]} 16. Nxf6+ {[%clk 0:01:28]} 16... Bxf6 {[%clk
0:01:27.9]} 17. Qg4 {[%clk 0:01:28.5]} 17... Qxc2 {[%clk 0:01:04.5]} 18. Bg5
{[%clk 0:01:27.4]} 18... Kh8 {[%clk 0:00:25.9]} 19. Bxf6 {[%clk 0:01:26.4]}
19... gxf6 {[%clk 0:00:26.8]} 20. Qh4 {[%clk 0:01:27.1]} 20... Rg8 {[%clk
0:00:26]} 21. Qxf6+ {[%clk 0:01:21.9]} 21... Rg7 {[%clk 0:00:26]} 22. Qd8+
{[%clk 0:01:22.8]} 22... Rg8 {[%clk 0:00:25.5]} 23. Qf6+ {[%clk 0:01:23.7]}
23... Rg7 {[%clk 0:00:25.6]} 24. Rf2 {[%clk 0:01:24.4]} 24... Qc7 {[%clk
0:00:20.5]} 25. Qh6 {[%clk 0:01:20.9]} 25... Bb7 {[%clk 0:00:19.8]} 26. f6
{[%clk 0:01:20.6]} 26... Rg6 {[%clk 0:00:19]} 27. Qh4 {[%clk 0:01:17.7]} 27...
Bxd5 {[%clk 0:00:19.3]} 28. exd5 {[%clk 0:01:18.6]} 28... Qc5 {[%clk 0:00:19.1]}
29. Rd1 {[%clk 0:01:16]} 29... Rbg8 {[%clk 0:00:19.5]} 30. Kh1 {[%clk
0:01:14.6]} 30... Rg4 {[%clk 0:00:18]} 31. Qxg4 {[%clk 0:00:54.1]} 31... Rxg4
{[%clk 0:00:17]} 32. Rdf1 {[%clk 0:00:52.2]} 32... Qe3 {[%clk 0:00:16.6]} 33.
Rc2 {[%clk 0:00:51.1]} 33... h6 {[%clk 0:00:16.1]} 34. h3 {[%clk 0:00:49.7]}
34... Rg5 {[%clk 0:00:15]} 35. Rd1 {[%clk 0:00:48.1]} 35... Qe4 {[%clk 0:00:15]}
36. Rcd2 {[%clk 0:00:46.8]} 36... Rf5 {[%clk 0:00:14.4]} 37. Kg1 {[%clk
0:00:37.3]} 37... Rxf6 {[%clk 0:00:14.6]} 38. Kh2 {[%clk 0:00:38.2]} 38... Qf4+
{[%clk 0:00:14.5]} 39. Kh1 {[%clk 0:00:38]} 39... Kg7 {[%clk 0:00:15.4]} 40. Re2
{[%clk 0:00:38.4]} 40... Qg5 {[%clk 0:00:15.5]} 41. Re4 {[%clk 0:00:38]} 41...
Rf4 {[%clk 0:00:15.8]} 42. Re2 {[%clk 0:00:38.4]} 42... Qf5 {[%clk 0:00:15.8]}
43. Kh2 {[%clk 0:00:36.8]} 43... Rf2 {[%clk 0:00:15.6]} 44. Re3 {[%clk
0:00:37.4]} 44... Qf4+ {[%clk 0:00:15.5]} 45. Rg3+ {[%clk 0:00:38]} 45... Kh7
{[%clk 0:00:12.3]} 46. h4 {[%clk 0:00:32]} 46... Qxh4+ {[%clk 0:00:11.3]} 47.
Rh3 {[%clk 0:00:32.7]} 47... Qf4+ {[%clk 0:00:11.4]} 48. Kg1 {[%clk 0:00:33.3]}
48... Rxb2 {[%clk 0:00:10.4]} 49. Kh1 {[%clk 0:00:29]} 49... Qg4 {[%clk
0:00:09]} 50. Rg1 {[%clk 0:00:28.9]} 50... Rxa2 {[%clk 0:00:09]} 51. Rf3 {[%clk
0:00:29.1]} 51... Qh4+ {[%clk 0:00:08.5]} 52. Rh3 {[%clk 0:00:29.7]} 52... Qg4
{[%clk 0:00:08.8]} 53. Rf3 {[%clk 0:00:30.3]} 53... Rd2 {[%clk 0:00:09.3]} 54.
Rxf7+ {[%clk 0:00:30.2]} 54... Kg6 {[%clk 0:00:09.8]} 55. Rf3 {[%clk 0:00:30.4]}
55... Rxd5 {[%clk 0:00:09.5]} 56. Rgf1 {[%clk 0:00:30.4]} 56... Qh4+ {[%clk
0:00:06.6]} 57. Rh3 {[%clk 0:00:30.5]} 57... Qg5 {[%clk 0:00:06.3]} 58. Kh2
{[%clk 0:00:28.1]} 58... Rd4 {[%clk 0:00:06.6]} 59. Kg1 {[%clk 0:00:26.5]} 59...
Rg4 {[%clk 0:00:07]} 60. Rf2 {[%clk 0:00:26.7]} 60... Qc1+ {[%clk 0:00:06.3]}
61. Kh2 {[%clk 0:00:26.2]} 61... Qg5 {[%clk 0:00:07.1]} 62. Kg1 {[%clk
0:00:26.3]} 62... Rg3 {[%clk 0:00:07.3]} 63. Rh2 {[%clk 0:00:24.4]} 63... Qe3
{[%clk 0:00:07]} 64. Rh4 {[%clk 0:00:22.1]} 64... Rg5 {[%clk 0:00:06.6]} 65. Rh2
{[%clk 0:00:14.4]} 65... Rf5 {[%clk 0:00:06.3]} 66. g3 {[%clk 0:00:14.8]} 66...
Rxf2 {[%clk 0:00:06.2]} 67. Rxf2 {[%clk 0:00:15.7]} 67... Qxg3+ {[%clk
0:00:06.4]} 68. Kh1 {[%clk 0:00:16.6]} 68... Qh3+ {[%clk 0:00:05.7]} 69. Kg1
{[%clk 0:00:17]} 69... Qg4+ {[%clk 0:00:06.3]} 70. Kh1 {[%clk 0:00:17.9]} 70...
Qe4+ {[%clk 0:00:06.3]} 71. Kh2 {[%clk 0:00:15.3]} 71... Qf4+ {[%clk 0:00:06]}
72. Kh1 {[%clk 0:00:15.2]} 72... Qh4+ {[%clk 0:00:05.1]} 73. Rh2 {[%clk
0:00:14.5]} 73... e4 {[%clk 0:00:06]} 74. Rxh4 {[%clk 0:00:14.4]} 74... Kf5
{[%clk 0:00:06.3]} 75. Kg2 {[%clk 0:00:13.1]} 75... d5 {[%clk 0:00:05.8]} 76.
Rxh6 {[%clk 0:00:11.7]} 76... d4 {[%clk 0:00:05.9]} 77. Rxa6 {[%clk 0:00:11.6]}
77... Kf4 {[%clk 0:00:05.4]} 78. Kf2 {[%clk 0:00:11.6]} 78... d3 {[%clk
0:00:04.6]} 79. Rb6 {[%clk 0:00:06.8]} 79... e3+ {[%clk 0:00:05.5]} 80. Ke1
{[%clk 0:00:07.1]} 80... Kf3 {[%clk 0:00:05.1]} 81. Rxb5 {[%clk 0:00:05.1]}
81... Ke4 {[%clk 0:00:03.8]} 82. Rb4+ {[%clk 0:00:04]} 82... Kf3 {[%clk
0:00:03.7]} 83. Rb8 {[%clk 0:00:04.6]} 83... Ke4 {[%clk 0:00:02.7]} 84. Re8+
{[%clk 0:00:05]} 84... Kd4 {[%clk 0:00:02.9]} 85. Re7 {[%clk 0:00:05]} 1-0